fUST/lending_fUST_20260111
["ID","MTS","AMOUNT","RATE_DAILY","PERIOD"]
[401305216,1768120249901,-700.258706,0.00035688,31]
[401305217,1768120249910,-700.258706,0.00035688,31]
[401305218,1768120249919,-151.292503,0.00035688,31]
[401305219,1768120249929,-264.224,0.00035688,31]
[401305220,1768120249938,-264.224,0.00035688,31]
[401305221,1768120249947,-264.224,0.00035688,31]
[401305222,1768120249956,-264.224,0.00035688,31]
[401305223,1768120249966,-151.0,0.00035688,31]
[401305224,1768120249975,-409.67,0.00035737,60]
[401305225,1768120249985,-728.0,0.00035777,11]
[401305226,1768120249994,-728.0,0.00035778,11]
[401305227,1768120250003,-728.0,0.00035786,11]
[401305228,1768120250013,-728.0,0.0003579,11]
[401305229,1768120250022,-160.0,0.0003582,11]
[401305230,1768120250031,-728.0,0.0003582,11]
[401305231,1768120250040,-409.67,0.00035837,60]
[401305232,1768120250049,-409.67,0.00035937,60]
[401305233,1768120250058,-800.0,0.00035967,7]
[401305234,1768120250067,-39000.0,0.00036,120]
[401305235,1768120250076,-1041.66666667,0.00036,120]
[401305236,1768120250085,-183.0,0.00036,120]
[401305237,1768120250094,-21115.55270283,0.00036,120]
[401305238,1768120250103,-409.67,0.00036037,60]
[401305239,1768120250113,-500.0,0.00036041,120]
[401305240,1768120250122,-500.0,0.00036041,120]
[401305241,1768120250133,-500.0,0.00036041,120]
[401305242,1768120250142,-500.0,0.00036041,120]
[401305243,1768120250151,-500.0,0.00036041,120]
[401305244,1768120250160,-500.0,0.00036041,120]
[401305245,1768120250169,-500.0,0.00036041,120]
[401305246,1768120250178,-500.0,0.00036041,120]
[401305247,1768120250187,-500.0,0.00036041,120]
[401305248,1768120250197,-500.0,0.00036041,120]
[401305249,1768120250207,-500.0,0.00036041,120]
[401305250,1768120250216,-500.0,0.00036041,120]
[401305251,1768120250225,-500.0,0.00036041,120]
[401305252,1768120250235,-500.0,0.00036041,120]
[401305253,1768120250244,-500.0,0.00036041,120]
[401305254,1768120250253,-500.0,0.00036041,120]
[401305255,1768120250262,-500.0,0.00036041,120]
[401305256,1768120250272,-500.0,0.00036041,120]
[401305257,1768120250281,-500.0,0.00036041,120]
[401305258,1768120250290,-500.0,0.00036041,120]
[401305259,1768120250299,-500.0,0.00036041,120]
[401305260,1768120250308,-500.0,0.00036041,120]
[401305261,1768120250322,-500.0,0.00036041,120]
[401305262,1768120250331,-500.0,0.00036041,120]
[401305263,1768120250340,-500.0,0.00036041,120]
[401305264,1768120250349,-500.0,0.00036041,120]
[401305265,1768120250359,-500.0,0.00036041,120]
[401305266,1768120250368,-500.0,0.00036041,120]
[401305267,1768120250377,-500.0,0.00036041,120]
[401305268,1768120250387,-500.0,0.00036041,120]
[401305269,1768120250396,-500.0,0.00036041,120]
[401305270,1768120250405,-500.0,0.00036041,120]
[401305271,1768120250415,-500.0,0.00036041,120]
[401305272,1768120250423,-500.0,0.00036041,120]
[401305273,1768120250432,-500.0,0.00036041,120]
[401305274,1768120250442,-500.0,0.00036041,120]
[401305275,1768120250451,-500.0,0.00036041,120]
[401305276,1768120250460,-500.0,0.00036041,120]
[401305277,1768120250470,-500.0,0.00036041,120]
[401305278,1768120250479,-500.0,0.00036041,120]
[401305279,1768120250488,-500.0,0.00036041,120]
[401305280,1768120250497,-500.0,0.00036041,120]
[401305281,1768120250506,-500.0,0.00036041,120]
[401305282,1768120250515,-289.23,0.00036041,120]
[401305283,1768120250524,-16224.21,0.000361,14]
[401305284,1768120250533,-728.0,0.00036105,11]
[401305285,1768120250542,-728.0,0.00036105,11]
[401305286,1768120250551,-728.0,0.00036106,11]
[401305287,1768120250560,-409.67,0.00036137,60]
[401305288,1768120250569,-269.53,0.00036137,5]
[401305289,1768120250578,-999.0,0.00036164,120]
[401305290,1768120250587,-551.07,0.00036164,30]
[401305291,1768120250596,-2100.0,0.00036164,5]
[401305292,1768120250606,-190.69567849,0.00036164,5]
[401305293,1768120250615,-307.0,0.00036232,2]
[401305294,1768120250624,-409.67,0.00036237,60]
[401305295,1768120250634,-409.67,0.00036337,60]
[401305296,1768120250643,-728.0,0.00036375,11]
[401305297,1768120250653,-5118.14073754,0.00036416,57]
[401305298,1768120250662,-728.0,0.00036418,11]
[401305299,1768120250672,-728.0,0.00036426,11]
[401305300,1768120250681,-728.0,0.00036426,11]
[401305301,1768120250691,-409.67,0.00036437,60]
[401305302,1768120250700,-170.0,0.00036438,88]
[401305303,1768120250709,-24887.7717,0.0003644,30]
[401305304,1768120250719,-250.18001437,0.00036444,120]
[401305305,1768120250728,-728.0,0.00036456,11]
[401305306,1768120250738,-728.0,0.00036456,11]
[401305307,1768120250747,-800.0,0.00036492,7]
[401305308,1768120250756,-629.16420479,0.00036501,7]
[401305309,1768120250766,-2560.29818,0.00036521,2]
[401305310,1768120250775,-409.67,0.00036537,60]
[401305311,1768120250785,-800.0,0.00036592,7]
[401305312,1768120250794,-357.0,0.00036627,2]
[401305313,1768120250803,-621.62,0.00036629,30]
[401305314,1768120250812,-409.67,0.00036637,60]
[401305315,1768120250822,-932.46362,0.000367,22]
[401305316,1768120250831,-5000.0,0.00036703,3]
[401305317,1768120250841,-745.54429652,0.00036712,30]
[401305318,1768120250851,-255.28085597,0.00036712,15]
[401305319,1768120250860,-200.586455,0.00036712,31]
[401305320,1768120250869,-160.002934,0.00036712,31]
[401305321,1768120250879,-172.824008,0.00036712,31]
[401305322,1768120250888,-510.31728869,0.00036712,30]
[401305323,1768120250897,-151.0,0.00036712,31]
[401305324,1768120250910,-151.0,0.00036712,31]
[401305325,1768120250919,-151.0,0.00036712,31]
[401305326,1768120250929,-151.0,0.00036712,31]
[401305327,1768120250938,-151.0,0.00036712,31]
[401305328,1768120250948,-511.42,0.00036712,30]
[401305329,1768120250958,-511.42,0.00036712,30]
[401305330,1768120250967,-511.42,0.00036712,30]
[401305331,1768120250977,-511.42,0.00036712,30]
[401305332,1768120250986,-511.42,0.00036712,30]
[401305333,1768120250995,-511.42,0.00036712,30]
[401305334,1768120251004,-511.42,0.00036712,30]
[401305335,1768120251014,-511.42,0.00036712,30]
[401305336,1768120251023,-511.42,0.00036712,30]
[401305337,1768120251032,-511.42,0.00036712,30]
[401305338,1768120251041,-511.42,0.00036712,30]
[401305339,1768120251051,-511.42,0.00036712,30]
[401305340,1768120251060,-511.42,0.00036712,30]
[401305341,1768120251069,-511.42,0.00036712,30]
[401305342,1768120251079,-511.42,0.00036712,30]
[401305343,1768120251088,-511.42,0.00036712,30]
[401305344,1768120251098,-511.42,0.00036712,30]
[401305345,1768120251106,-511.42,0.00036712,30]
[401305346,1768120251115,-511.42,0.00036712,30]
[401305347,1768120251125,-511.42,0.00036712,30]
[401305348,1768120251133,-511.42,0.00036712,30]
[401305349,1768120251143,-511.42,0.00036712,30]
[401305350,1768120251152,-511.42,0.00036712,30]
[401305351,1768120251161,-511.43574401,0.00036712,30]
[401305352,1768120251170,-505.71118481,0.00036712,30]
[401305353,1768120251180,-511.2635964,0.00036712,30]
[401305354,1768120251190,-503.90614226,0.00036712,30]
[401305355,1768120251199,-500.0,0.00036712,30]
[401305356,1768120251208,-500.0,0.00036712,30]
[401305357,1768120251217,-500.0,0.00036712,30]
[401305358,1768120251227,-151.0,0.00036712,31]
[401305359,1768120251236,-514.0321533,0.00036712,30]
[401305360,1768120251245,-151.0,0.00036712,31]
[401305361,1768120251254,-151.0,0.00036712,31]
[401305362,1768120251263,-151.0,0.00036712,31]
[401305363,1768120251273,-210.64083434,0.00036712,30]
[401305364,1768120251283,-240.94098718,0.00036712,30]
[401305365,1768120251293,-506.27876809,0.00036712,30]
[401305366,1768120251303,-584.92818268,0.00036712,30]
[401305367,1768120251313,-506.19561668,0.00036712,30]
[401305368,1768120251327,-470.16657396,0.00036712,30]
[401305369,1768120251336,-277.33327289,0.00036712,30]
[401305370,1768120251346,-223.00612782,0.00036712,30]
[401305371,1768120251356,-500.0,0.00036712,30]
[401305372,1768120251367,-168.51621167,0.00036712,30]
[401305373,1768120251376,-151.0,0.00036712,31]
[401305374,1768120251386,-500.0,0.00036712,30]
[401305375,1768120251397,-524.57743511,0.00036712,30]
[401305376,1768120251406,-151.0,0.00036712,31]
[401305377,1768120251416,-289.81934989,0.00036712,30]
[401305378,1768120251425,-151.0,0.00036712,31]
[401305379,1768120251435,-169.882376,0.00036712,31]
[401305380,1768120251444,-151.0,0.00036712,31]
[401305381,1768120251453,-575.38785442,0.00036712,30]
[401305382,1768120251462,-512.75303942,0.00036712,30]
[401305383,1768120251471,-151.0,0.00036712,31]
[401305384,1768120251480,-361.66476166,0.00036712,30]
[401305385,1768120251490,-151.0,0.00036712,31]
[401305386,1768120251500,-544.06434605,0.00036712,30]
[401305387,1768120251509,-151.0,0.00036712,31]
[401305388,1768120251518,-500.0,0.00036712,30]
[401305389,1768120251604,-501.30732126,0.00036712,30]
[401305390,1768120251614,-500.0,0.00036712,30]
[401305391,1768120251623,-505.35430273,0.00036712,30]
[401305392,1768120251633,-500.0,0.00036712,30]
[401305393,1768120251642,-542.76368036,0.00036712,30]
[401305394,1768120251651,-506.70821514,0.00036712,30]
[401305395,1768120251660,-151.0,0.00036712,31]
[401305396,1768120251670,-559.46886412,0.00036712,30]
[401305397,1768120251679,-555.12064961,0.00036712,30]
[401305398,1768120251689,-161.096358,0.00036712,31]
[401305399,1768120251699,-154.49913443,0.00036712,30]
[401305400,1768120251708,-151.0,0.00036712,31]
[401305401,1768120251718,-151.0,0.00036712,7]
[401305402,1768120251727,-607.3523042,0.00036712,30]
[401305403,1768120251737,-546.35140966,0.00036712,30]
[401305404,1768120251746,-571.20178268,0.00036712,30]
[401305405,1768120251755,-151.0,0.00036712,31]
[401305406,1768120251765,-151.0,0.00036712,31]
[401305407,1768120251774,-261.89333374,0.00036712,30]
[401305408,1768120251783,-573.48613407,0.00036712,30]
[401305409,1768120251792,-382.637039,0.00036712,31]
[401305410,1768120251802,-382.637039,0.00036712,31]
[401305411,1768120251811,-382.637039,0.00036712,31]
[401305412,1768120251821,-536.96257138,0.00036712,30]
[401305413,1768120251831,-382.637039,0.00036712,31]
[401305414,1768120251840,-510.47228054,0.00036712,30]
[401305415,1768120251849,-502.99137935,0.00036712,30]
[401305416,1768120251859,-151.0,0.00036712,31]
[401305417,1768120251868,-500.0,0.00036712,30]
[401305418,1768120251878,-500.0,0.00036712,30]
[401305419,1768120251887,-500.0,0.00036712,30]
[401305420,1768120251897,-500.0,0.00036712,30]
[401305421,1768120251907,-500.0,0.00036712,30]
[401305422,1768120251917,-500.0,0.00036712,30]
[401305423,1768120251926,-500.0,0.00036712,30]
[401305424,1768120251936,-500.0,0.00036712,30]
[401305425,1768120251946,-298.53130147,0.00036712,30]
[401305426,1768120251955,-532.68814088,0.00036712,30]
[401305427,1768120251965,-599.43015721,0.00036712,30]
[401305428,1768120251974,-504.0948618,0.00036712,30]
[401305429,1768120251982,-755.83,0.00036712,30]
[401305430,1768120251992,-155.856993,0.00036712,31]
[401305431,1768120252002,-755.83,0.00036712,30]
[401305432,1768120252012,-755.83,0.00036712,30]
[401305433,1768120252021,-755.83,0.00036712,30]
[401305434,1768120252030,-556.78391806,0.00036712,30]
[401305435,1768120252039,-755.83,0.00036712,30]
[401305436,1768120252048,-755.83,0.00036712,30]
[401305437,1768120252058,-755.83,0.00036712,30]
[401305438,1768120252067,-755.83,0.00036712,30]
[401305439,1768120252076,-755.83,0.00036712,30]
[401305440,1768120252085,-755.83,0.00036712,30]
[401305441,1768120252095,-755.83,0.00036712,30]
[401305442,1768120252104,-500.0,0.00036712,30]
[401305443,1768120252114,-755.83,0.00036712,30]
[401305444,1768120252123,-503.86064142,0.00036712,30]
[401305445,1768120252132,-755.83,0.00036712,30]
[401305446,1768120252141,-755.83,0.00036712,30]
[401305447,1768120252150,-755.83,0.00036712,30]
[401305448,1768120252160,-755.83,0.00036712,30]
[401305449,1768120252169,-755.83,0.00036712,30]
[401305450,1768120252179,-755.83,0.00036712,30]
[401305451,1768120252188,-755.83,0.00036712,30]
[401305452,1768120252198,-755.83,0.00036712,30]
[401305453,1768120252207,-755.83,0.00036712,30]
[401305454,1768120252216,-755.83,0.00036712,30]
[401305455,1768120252226,-755.83,0.00036712,30]
[401305456,1768120252235,-755.94222647,0.00036712,30]
[401305457,1768120252245,-513.4448394,0.00036712,30]
[401305458,1768120252254,-500.0,0.00036712,30]
[401305459,1768120252263,-500.0,0.00036712,30]
[401305460,1768120252272,-500.0,0.00036712,30]
[401305461,1768120252282,-500.0,0.00036712,30]
[401305462,1768120252291,-500.0,0.00036712,30]
[401305463,1768120252300,-500.0,0.00036712,30]
[401305464,1768120252310,-190.0354984,0.00036712,30]
[401305465,1768120252324,-151.0,0.00036712,31]
[401305466,1768120252333,-151.0,0.00036712,31]
[401305467,1768120252342,-151.0,0.00036712,31]
[401305468,1768120252351,-151.0,0.00036712,31]
[401305469,1768120252361,-504.61600788,0.00036712,30]
[401305470,1768120252370,-559.00678652,0.00036712,30]
[401305471,1768120252380,-511.68339076,0.00036712,30]
[401305472,1768120252389,-500.0,0.00036712,30]
[401305473,1768120252398,-344.667262,0.00036712,30]
[401305474,1768120252407,-208.705745,0.00036712,30]
[401305475,1768120252416,-500.0,0.00036712,30]
[401305476,1768120252425,-500.0,0.00036712,30]
[401305477,1768120252434,-500.0,0.00036712,30]
[401305478,1768120252443,-500.0,0.00036712,30]
[401305479,1768120252452,-500.0,0.00036712,30]
[401305480,1768120252462,-500.0,0.00036712,30]
[401305481,1768120252472,-500.0,0.00036712,30]
[401305482,1768120252481,-500.0,0.00036712,30]
[401305483,1768120252490,-500.0,0.00036712,30]
[401305484,1768120252499,-313.65745506,0.00036712,30]
[401305485,1768120252509,-150.97237527,0.00036712,30]
[401305486,1768120252518,-508.47586913,0.00036712,30]
[401305487,1768120252527,-534.30368528,0.00036712,30]
[401305488,1768120252536,-663.704051,0.00036712,30]
[401305489,1768120252549,-501.7237392,0.00036712,30]
[401305490,1768120252559,-500.0,0.00036712,2]
[401305491,1768120252568,-500.0,0.00036712,30]
[401305492,1768120252578,-503.55890318,0.00036712,30]
[401305493,1768120252594,-500.0,0.00036712,2]
[401305494,1768120252607,-500.0,0.00036712,2]
[401305495,1768120252620,-500.0,0.00036712,2]
[401305496,1768120252629,-500.0,0.00036712,2]
[401305497,1768120252639,-500.0,0.00036712,2]
[401305498,1768120252648,-500.0,0.00036712,2]
[401305499,1768120252658,-500.0,0.00036712,2]
[401305500,1768120252667,-500.0,0.00036712,2]
[401305501,1768120252677,-500.0,0.00036712,2]
[401305502,1768120252686,-500.0,0.00036712,2]
[401305503,1768120252696,-500.0,0.00036712,2]
[401305504,1768120252706,-500.0,0.00036712,2]
[401305505,1768120252716,-500.0,0.00036712,2]
[401305506,1768120252726,-500.0,0.00036712,2]
[401305507,1768120252735,-500.0,0.00036712,2]
[401305508,1768120252745,-500.0,0.00036712,2]
[401305509,1768120252754,-629.01311732,0.00036712,2]
[401305510,1768120252764,-151.0,0.00036712,31]
[401305511,1768120252774,-151.0,0.00036712,31]
[401305512,1768120252783,-550.91570645,0.00036712,30]
[401305513,1768120252793,-525.47052968,0.00036712,30]
[401305514,1768120252803,-153.43170984,0.00036712,30]
[401305515,1768120252812,-500.0,0.00036712,10]
[401305516,1768120252821,-500.0,0.00036712,10]
[401305517,1768120252831,-500.0,0.00036712,10]
[401305518,1768120252840,-500.0,0.00036712,10]
[401305519,1768120252850,-500.0,0.00036712,10]
[401305520,1768120252859,-500.0,0.00036712,10]
[401305521,1768120252869,-500.0,0.00036712,10]
[401305522,1768120252878,-500.0,0.00036712,10]
[401305523,1768120252888,-500.0,0.00036712,10]
[401305524,1768120252897,-500.0,0.00036712,10]
[401305525,1768120252907,-500.0,0.00036712,10]
[401305526,1768120252916,-500.0,0.00036712,10]
[401305527,1768120252925,-500.0,0.00036712,10]
[401305528,1768120252935,-500.0,0.00036712,10]
[401305529,1768120252944,-500.0,0.00036712,10]
[401305530,1768120252954,-500.0,0.00036712,10]
[401305531,1768120252963,-500.0,0.00036712,10]
[401305532,1768120252972,-500.0,0.00036712,10]
[401305533,1768120252981,-500.0,0.00036712,10]
[401305534,1768120252991,-233.97388116,0.00036712,10]
[401305535,1768120253000,-500.0,0.00036712,30]
[401305536,1768120253012,-311.04511253,0.00036712,30]
[401305537,1768120253021,-500.0,0.00036712,2]
[401305538,1768120253030,-500.0,0.00036712,2]
[401305539,1768120253039,-504.32900075,0.00036712,30]
[401305540,1768120253049,-514.24228966,0.00036712,30]
[401305541,1768120253058,-525.79336527,0.00036712,30]
[401305542,1768120253067,-601.14032287,0.00036712,2]
[401305543,1768120253077,-504.06028956,0.00036712,30]
[401305544,1768120253086,-503.45730481,0.00036712,30]
[401305545,1768120253096,-500.0,0.00036712,30]
[401305546,1768120253105,-500.0,0.00036712,30]
[401305547,1768120253114,-500.0,0.00036712,30]
[401305548,1768120253124,-500.0,0.00036712,30]
[401305549,1768120253133,-500.0,0.00036712,30]
[401305550,1768120253215,-453.95776,0.00036712,30]
[401305551,1768120253225,-264.224,0.00036712,31]
[401305552,1768120253234,-500.0,0.00036712,30]
[401305553,1768120253243,-500.0,0.00036712,30]
[401305554,1768120253254,-500.0,0.00036712,30]
[401305555,1768120253263,-507.5672722,0.00036712,30]
[401305556,1768120253272,-264.224,0.00036712,31]
[401305557,1768120253282,-264.224,0.00036712,31]
[401305558,1768120253291,-500.0,0.00036712,30]
[401305559,1768120253301,-264.224,0.00036712,31]
[401305560,1768120253310,-151.32658008,0.00036712,30]
[401305561,1768120253322,-503.81493644,0.00036712,30]
[401305562,1768120253332,-505.38162549,0.00036712,30]
[401305563,1768120253342,-504.58730957,0.00036712,30]
[401305564,1768120253352,-517.41385528,0.00036712,30]
[401305565,1768120253363,-503.1318343,0.00036712,30]
[401305566,1768120253372,-500.0,0.00036712,30]
[401305567,1768120253382,-215.36077663,0.00036712,30]
[401305568,1768120253393,-582.56702915,0.00036712,30]
[401305569,1768120253403,-506.69367317,0.00036712,30]
[401305570,1768120253413,-515.77118193,0.00036712,30]
[401305571,1768120253422,-571.59262155,0.00036712,30]
[401305572,1768120253432,-505.08376008,0.00036712,30]
[401305573,1768120253441,-537.74011614,0.00036712,30]
[401305574,1768120253451,-192.928076,0.00036712,31]
[401305575,1768120253460,-521.16032339,0.00036712,30]
[401305576,1768120253471,-496.30087179,0.00036712,30]
[401305577,1768120253481,-504.48438496,0.00036712,30]
[401305578,1768120253490,-151.0,0.00036712,31]
[401305579,1768120253499,-155.09141946,0.00036712,30]
[401305580,1768120253509,-512.03508644,0.00036712,30]
[401305581,1768120253519,-2561.92,0.00036712,3]
[401305582,1768120253529,-2561.92,0.00036712,3]
[401305583,1768120253539,-2561.92,0.00036712,3]
[401305584,1768120253548,-2561.92,0.00036712,3]
[401305585,1768120253558,-2561.92,0.00036712,3]
[401305586,1768120253567,-2561.92,0.00036712,3]
[401305587,1768120253577,-2561.92,0.00036712,3]
[401305588,1768120253586,-2561.92,0.00036712,3]
[401305589,1768120253595,-151.0,0.00036712,31]
[401305590,1768120253605,-2561.92,0.00036712,3]
[401305591,1768120253615,-2561.92,0.00036712,3]
[401305592,1768120253625,-2561.92,0.00036712,3]
[401305593,1768120253634,-2561.92,0.00036712,3]
[401305594,1768120253644,-2561.92,0.00036712,3]
[401305595,1768120253654,-2561.92,0.00036712,3]
[401305596,1768120253663,-509.09825176,0.00036712,30]
[401305597,1768120253673,-2561.92,0.00036712,3]
[401305598,1768120253682,-2561.92,0.00036712,3]
[401305599,1768120253692,-2561.92,0.00036712,3]
[401305600,1768120253701,-2561.92,0.00036712,3]
[401305601,1768120253711,-2561.92,0.00036712,3]
[401305602,1768120253721,-2561.92,0.00036712,3]
[401305603,1768120253731,-2561.92,0.00036712,3]
[401305604,1768120253740,-2561.92,0.00036712,3]
[401305605,1768120253750,-2561.92,0.00036712,3]
[401305606,1768120253759,-2562.08931595,0.00036712,3]
[401305607,1768120253769,-500.0,0.00036712,2]
[401305608,1768120253779,-500.0,0.00036712,2]
[401305609,1768120253788,-500.0,0.00036712,2]
[401305610,1768120253798,-500.0,0.00036712,2]
[401305611,1768120253807,-500.0,0.00036712,2]
[401305612,1768120253817,-500.0,0.00036712,2]
[401305613,1768120253826,-500.0,0.00036712,2]
[401305614,1768120253835,-311.25399765,0.00036712,2]
[401305615,1768120253845,-2486.72,0.00036712,30]
[401305616,1768120253854,-2486.72,0.00036712,30]
[401305617,1768120253863,-2486.72,0.00036712,30]
[401305618,1768120253873,-151.0,0.00036712,31]
[401305619,1768120253882,-2486.72,0.00036712,30]
[401305620,1768120253892,-2486.72,0.00036712,30]
[401305621,1768120253901,-2486.72,0.00036712,30]
[401305622,1768120253910,-2486.72,0.00036712,30]
[401305623,1768120253920,-523.47204712,0.00036712,30]
[401305624,1768120253929,-2486.72,0.00036712,30]
[401305625,1768120253939,-2486.72,0.00036712,30]
[401305626,1768120253948,-2486.72,0.00036712,30]
[401305627,1768120253957,-2486.72,0.00036712,30]
[401305628,1768120253967,-2486.72,0.00036712,30]
[401305629,1768120253976,-2486.72,0.00036712,30]
[401305630,1768120253985,-2486.72,0.00036712,30]
[401305631,1768120253995,-2486.72,0.00036712,30]
[401305632,1768120254004,-2486.72,0.00036712,30]
[401305633,1768120254014,-2486.72,0.00036712,30]
[401305634,1768120254024,-2486.72,0.00036712,30]
[401305635,1768120254033,-2486.72,0.00036712,30]
[401305636,1768120254043,-2486.72,0.00036712,30]
[401305637,1768120254052,-2486.72,0.00036712,30]
[401305638,1768120254062,-2486.72,0.00036712,30]
[401305639,1768120254071,-2486.72,0.00036712,30]
[401305640,1768120254081,-2486.94436538,0.00036712,30]
[401305641,1768120254091,-152.205819,0.00036712,31]
[401305642,1768120254100,-510.73351172,0.00036712,30]
[401305643,1768120254109,-500.0,0.00036712,30]
[401305644,1768120254119,-16913.26,0.00036712,30]
[401305645,1768120254128,-16913.26,0.00036712,30]
[401305646,1768120254137,-16913.26,0.00036712,30]
[401305647,1768120254146,-16913.26,0.00036712,30]
[401305648,1768120254156,-500.0,0.00036712,30]
[401305649,1768120254164,-16913.26,0.00036712,30]
[401305650,1768120254174,-16913.26,0.00036712,30]
[401305651,1768120254183,-500.0,0.00036712,30]
[401305652,1768120254192,-16913.26,0.00036712,30]
[401305653,1768120254201,-500.0,0.00036712,30]
[401305654,1768120254211,-151.0,0.00036712,31]
[401305655,1768120254220,-16913.26,0.00036712,30]
[401305656,1768120254229,-500.0,0.00036712,30]
[401305657,1768120254239,-16913.26,0.00036712,30]
[401305658,1768120254248,-500.0,0.00036712,30]
[401305659,1768120254257,-500.0,0.00036712,30]
[401305660,1768120254266,-16913.26,0.00036712,30]
[401305661,1768120254275,-511.46237537,0.00036712,30]
[401305662,1768120254285,-500.0,0.00036712,30]
[401305663,1768120254294,-16913.26,0.00036712,30]
[401305664,1768120254304,-500.0,0.00036712,30]
[401305665,1768120254314,-16913.26,0.00036712,30]
[401305666,1768120254327,-500.0,0.00036712,30]
[401305667,1768120254336,-16913.26,0.00036712,30]
[401305668,1768120254345,-500.0,0.00036712,30]
[401305669,1768120254355,-16913.26,0.00036712,30]
[401305670,1768120254364,-435.79809887,0.00036712,30]
[401305671,1768120254374,-16913.26,0.00036712,30]
[401305672,1768120254383,-16913.26,0.00036712,30]
[401305673,1768120254392,-16913.26,0.00036712,30]
[401305674,1768120254402,-16913.26,0.00036712,30]
[401305675,1768120254411,-16913.26,0.00036712,30]
[401305676,1768120254420,-16913.26,0.00036712,30]
[401305677,1768120254430,-16913.26,0.00036712,30]
[401305678,1768120254439,-16913.26,0.00036712,30]
[401305679,1768120254448,-16913.26,0.00036712,30]
[401305680,1768120254457,-16913.36033999,0.00036712,30]
[401305681,1768120254467,-509.55608441,0.00036712,30]
[401305682,1768120254476,-501.48369202,0.00036712,30]
[401305683,1768120254486,-521.64444701,0.00036712,30]
[401305684,1768120254495,-337.63663526,0.00036712,30]
[401305685,1768120254504,-4899.58,0.00036712,30]
[401305686,1768120254514,-500.0,0.00036712,30]
[401305687,1768120254524,-4899.58,0.00036712,30]
[401305688,1768120254533,-222.92460277,0.00036712,30]
[401305689,1768120254542,-4899.58,0.00036712,30]
[401305690,1768120254551,-4899.58,0.00036712,30]
[401305691,1768120254560,-4899.58,0.00036712,30]
[401305692,1768120254570,-4899.58,0.00036712,30]
[401305693,1768120254579,-4899.58,0.00036712,30]
[401305694,1768120254588,-4899.58,0.00036712,30]
[401305695,1768120254598,-4899.58,0.00036712,30]
[401305696,1768120254608,-4899.58,0.00036712,30]
[401305697,1768120254686,-4899.58,0.00036712,30]
[401305698,1768120254696,-4899.58,0.00036712,30]
[401305699,1768120254706,-4899.58,0.00036712,30]
[401305700,1768120254715,-512.51462059,0.00036712,30]
[401305701,1768120254725,-4899.58,0.00036712,30]
[401305702,1768120254735,-4899.58,0.00036712,30]
[401305703,1768120254744,-4899.58,0.00036712,30]
[401305704,1768120254754,-500.0,0.00036712,30]
[401305705,1768120254763,-354.9109568,0.00036712,30]
[401305706,1768120254773,-4899.58,0.00036712,30]
[401305707,1768120254782,-4899.58,0.00036712,30]
[401305708,1768120254791,-4899.58,0.00036712,30]
[401305709,1768120254801,-4899.58,0.00036712,30]
[401305710,1768120254810,-552.28498218,0.00036712,30]
[401305711,1768120254820,-4899.58,0.00036712,30]
[401305712,1768120254829,-4899.58,0.00036712,30]
[401305713,1768120254839,-4899.58,0.00036712,30]
[401305714,1768120254848,-4899.65119912,0.00036712,30]
[401305715,1768120254858,-522.33649511,0.00036712,30]